bitfinex/quotes_SOLUSD_20220227
["timestamp","ask_amount","ask_price","bid_price","bid_amount"]
[1645964499368,1.92375497,91.197,91.092,110.2]
[1645964499567,4.67054418,91.197,91.092,110.2]
[1645964499767,2.74678921,91.196,91.092,110.2]
[1645964500569,16.4679,91.19,91.091,24.8539]
[1645964500771,112.04437389,91.189,91.003,5.53]
[1645964500967,4.389,91.188,91.008,46.3836]
[1645964501167,5.95401295,91.188,91.046,25.19337406]
[1645964501368,1.56501295,91.188,91.082,6.0]
[1645964501667,45.72937264,91.186,91.083,57.2506855]
[1645964501867,1.59658233,91.185,91.085,110.2]
[1645964502069,1.59658233,91.185,91.09,16.467]
[1645964502367,1.59658233,91.185,91.091,6.0]
[1645964502768,2.74678921,91.184,91.091,6.0]
[1645964502969,2.74678921,91.184,91.092,110.2]
[1645964503168,2.74678921,91.184,91.091,110.2]
[1645964503970,2.74678921,91.184,91.09,16.467]
[1645964504772,2.74678921,91.184,91.091,6.0]
[1645964505372,2.74678921,91.184,91.083,23.8088]
[1645964506175,2.74678921,91.184,91.084,110.2]
[1645964506374,2.74678921,91.184,91.086,110.2]
[1645964506977,2.74678921,91.184,91.088,110.2]
[1645964507878,2.74678921,91.184,91.089,116.2]
[1645964508079,2.74678921,91.184,91.09,110.2]
[1645964508279,2.74678921,91.184,91.09,112.94678921]
[1645964508481,2.74678921,91.184,91.092,110.2]
[1645964508680,2.74678921,91.184,91.094,110.2]
[1645964508979,2.74678921,91.184,91.096,110.2]
[1645964509878,2.74678921,91.184,91.097,6.0]
[1645964510105,2.74678921,91.184,91.088,110.2]
[1645964511105,2.74678921,91.184,91.085,41.66799872]
[1645964511106,2.74678921,91.184,91.086,110.2]
[1645964511304,2.74678921,91.184,91.091,110.2]
[1645964511506,1.59658233,91.185,91.093,110.2]
[1645964512005,1.59658233,91.185,91.095,110.2]
[1645964512205,1.59658233,91.185,91.097,110.2]
[1645964512410,1.59658233,91.185,91.099,110.2]
[1645964512610,1.59658233,91.185,91.111,110.2]
[1645964513410,1.59658233,91.185,91.113,110.2]
[1645964513811,1.59658233,91.185,91.115,110.2]
[1645964514209,1.59658233,91.185,91.114,35.70800908]
[1645964514210,1.59658233,91.185,91.117,110.2]
[1645964514408,1.59658233,91.185,91.119,110.2]
[1645964514609,1.59658233,91.185,91.121,110.2]
[1645964515511,43.60010312,91.186,91.123,110.2]
[1645964515713,43.60010312,91.186,91.125,110.2]
[1645964515913,43.60010312,91.186,91.127,110.2]
[1645964516115,43.60010312,91.186,91.129,110.2]
[1645964516313,43.60010312,91.186,91.131,110.2]
[1645964517115,43.60010312,91.186,91.133,110.2]
[1645964517317,1.7162349,91.197,91.133,110.2]
[1645964517515,23.5713,91.21,91.135,110.2]
[1645964517715,23.5713,91.21,91.137,110.2]
[1645964517915,23.5713,91.21,91.139,110.2]
[1645964518116,23.5713,91.21,91.141,110.2]
[1645964518316,40.15476694,91.209,91.143,110.2]
[1645964518516,40.15476694,91.209,91.145,110.2]
[1645964518718,40.15476694,91.209,91.147,110.2]
[1645964519618,1.69208385,91.208,91.141,110.2]
[1645964519816,1.69208385,91.208,91.143,110.2]
[1645964520016,1.69208385,91.208,91.14,16.458]
[1645964520017,1.69208385,91.208,91.145,110.2]
[1645964520218,1.69208385,91.208,91.147,110.2]
[1645964520416,1.69208385,91.208,91.149,110.2]
[1645964521118,1.69208385,91.208,91.148,6.0]
[1645964521119,1.69208385,91.208,91.151,110.2]
[1645964522117,1.69208385,91.208,91.149,110.2]
[1645964522319,1.69208385,91.208,91.151,110.2]
[1645964523418,1.69208385,91.208,91.149,110.2]
[1645964523619,40.15476694,91.209,91.151,110.2]
[1645964523822,40.15476694,91.209,91.155,110.2]
[1645964524020,40.15476694,91.209,91.157,110.2]
[1645964524220,40.15476694,91.209,91.159,110.2]
[1645964524520,40.15476694,91.209,91.161,110.2]
[1645964524719,40.15476694,91.209,91.163,110.2]
[1645964525821,40.15476694,91.209,91.162,110.2]
[1645964526022,40.15476694,91.209,91.165,110.2]
[1645964528623,40.15476694,91.209,91.167,110.2]
[1645964529126,1.77644913,91.228,91.171,110.2]
[1645964529525,1.77644913,91.228,91.173,110.2]
[1645964530427,1.77644913,91.228,91.171,110.2]
[1645964531125,1.84694387,91.226,91.171,110.2]
[1645964531628,45.32444061,91.227,91.171,110.2]
[1645964531826,45.32444061,91.227,91.173,110.2]
[1645964532027,45.32444061,91.227,91.175,110.2]
[1645964532226,45.32444061,91.227,91.177,110.2]
[1645964532926,45.32444061,91.227,91.179,110.2]
[1645964533526,45.32444061,91.227,91.181,110.2]
[1645964533728,45.32444061,91.227,91.183,110.2]
[1645964533927,1.84715372,91.237,91.185,110.2]
[1645964534129,1.98069564,91.258,91.185,110.2]
[1645964534328,1.98069564,91.258,91.187,110.2]
[1645964534728,2.74678921,91.279,91.191,110.2]
[1645964534929,1.92795523,91.288,91.191,110.2]
[1645964534930,44.93477647,91.257,91.193,110.2]
[1645964535130,1.56508963,91.256,91.193,110.2]
[1645964535328,2.12671001,91.256,91.193,110.2]
[1645964535927,2.12671001,91.256,91.188,110.2]
[1645964536127,2.12671001,91.256,91.191,110.2]
[1645964536528,2.12671001,91.256,91.19,16.4488]
[1645964537030,2.07864287,91.288,91.192,2.74678921]
[1645964537234,2.07864287,91.288,91.211,110.2]
[1645964537428,2.2483395,91.308,91.213,110.2]
[1645964537628,2.2483395,91.308,91.215,110.2]
[1645964537831,42.09807569,91.307,91.217,110.2]
[1645964538029,1.76670434,91.306,91.219,110.2]
[1645964538230,1.76670434,91.306,91.221,110.2]
[1645964538427,1.76670434,91.306,91.223,110.2]
[1645964538627,1.76670434,91.306,91.231,110.2]
[1645964538829,1.76670434,91.306,91.233,110.2]
[1645964539032,1.76670434,91.306,91.235,110.2]
[1645964539234,1.76670434,91.306,91.237,110.2]
[1645964539429,1.76670434,91.306,91.239,110.2]
[1645964539631,42.09807569,91.307,91.241,110.2]
[1645964539833,42.09807569,91.307,91.243,110.2]
[1645964540032,42.09807569,91.307,91.247,110.2]
[1645964540332,7.00600254,91.304,91.207,16.67810855]
[1645964540533,110.2,91.303,91.171,16.5129]
[1645964540732,110.2,91.299,91.16,16.4537]
[1645964540933,110.2,91.297,91.132,24.4612]
[1645964541232,1.89693904,91.294,91.134,110.2]
[1645964541434,110.2,91.289,91.134,110.2]
[1645964541633,1.54258789,91.288,91.134,110.2]
[1645964541836,1.7777074,91.285,91.134,110.2]
[1645964542033,4.385,91.284,91.134,110.2]
[1645964542235,110.2,91.283,91.134,110.2]
[1645964542541,110.2,91.269,91.134,110.2]
[1645964542734,146.90616935,91.267,91.134,132.9487]
[1645964542933,1.70661226,91.264,91.134,132.9487]
[1645964543134,2.05430017,91.261,91.134,132.9487]
[1645964543336,4.386,91.26,91.134,132.9487]
[1645964543536,2.06280821,91.258,91.134,132.9487]
[1645964543735,16.4609,91.24,91.134,132.9487]
[1645964543935,82.01225333,91.239,91.131,110.2]
[1645964544135,1.92390492,91.238,91.131,110.2]
[1645964544437,1.63238538,91.236,91.13,16.4596]
[1645964544635,1.59369527,91.234,91.13,16.4596]
[1645964544834,4.386,91.233,91.132,110.2]
[1645964545034,1.77928409,91.232,91.132,110.2]
[1645964545235,7.64063647,91.237,91.134,110.2]
[1645964545435,7.64063647,91.237,91.141,110.2]
[1645964545835,7.64063647,91.237,91.141,109.7]
[1645964547337,7.64063647,91.237,91.14,16.4578]
[1645964547338,7.64063647,91.237,91.151,152.92260879]
[1645964547539,7.64063647,91.237,91.153,109.7]
[1645964549839,16.4595,91.23,91.141,16.3445]
[1645964550042,16.4595,91.23,91.122,22.5197]
[1645964550043,12.39856253,91.229,91.122,22.5197]
[1645964550240,1.85691564,91.228,91.122,22.0197]
[1645964550439,1.60640874,91.226,91.122,22.0197]
[1645964550638,6.0,91.225,91.122,22.0197]
[1645964550840,36.7718285,91.224,91.141,110.2]
[1645964551042,1.90233222,91.223,91.143,110.2]
[1645964552642,1.90233222,91.223,91.151,110.2]
[1645964552842,1.90233222,91.223,91.15,16.4562]
[1645964553742,6.0,91.222,91.15,16.4562]
[1645964554641,6.0,91.222,91.142,60.65414381]
[1645964554844,6.0,91.222,91.142,60.15414381]
[1645964555042,6.0,91.222,91.142,23.6283]
[1645964555444,6.0,91.222,91.13,16.4591]
[1645964555644,6.0,91.222,91.072,77.7919]
[1645964555645,1.56976036,91.219,91.11,16.4627]
[1645964555842,1.56961435,91.217,91.11,16.4627]
[1645964556043,2.02819829,91.215,91.105,110.2]
[1645964556243,4.386,91.214,91.105,110.2]
[1645964556445,7.90302424,91.213,91.105,110.2]
[1645964556745,5.97048364,91.212,91.102,110.2]
[1645964556946,34.68764539,91.21,91.102,110.2]
[1645964557146,1.74341967,91.208,91.102,110.2]
[1645964557349,1.58621979,91.199,91.102,110.2]
[1645964557949,1.7401231,91.197,91.091,110.2]
[1645964558148,4.388,91.196,91.091,110.2]
[1645964558350,2.74678921,91.196,91.091,110.2]
[1645964558772,2.74678921,91.195,91.091,110.2]
[1645964558973,1.9478099,91.193,91.093,110.2]
[1645964559172,6.0,91.192,91.093,110.2]
[1645964559472,16.4689,91.19,91.093,110.2]
[1645964559670,10.388,91.189,91.093,109.7]
[1645964559873,1.76298661,91.188,91.093,109.7]
[1645964560070,54.1533,91.187,91.093,109.7]
[1645964560271,1.99474329,91.186,91.093,109.7]
[1645964560471,6.0,91.185,91.093,109.7]
[1645964561976,4.388,91.193,91.101,109.7]
[1645964562176,1.57597433,91.2,91.103,109.7]
[1645964562377,47.4722,91.229,91.102,6.25]
[1645964562378,2.04219037,91.228,91.105,109.7]
[1645964562576,2.04219037,91.228,91.107,109.7]
[1645964562777,2.04219037,91.228,91.109,109.7]
[1645964562977,2.04219037,91.228,91.111,109.7]
[1645964563179,2.04219037,91.228,91.15,16.4557]
[1645964563379,2.12515582,91.193,91.132,109.7]
[1645964563779,6.0,91.192,91.132,109.7]
[1645964564179,2.12515582,91.193,91.132,109.7]
[1645964564380,1.59875185,91.245,91.141,109.7]
[1645964564581,1.8481808,91.296,91.143,109.7]
[1645964564781,1.8481808,91.296,91.145,109.7]
[1645964564983,4.384,91.295,91.147,109.7]
[1645964565181,44.29060506,91.294,91.149,109.7]
[1645964565380,4.384,91.293,91.151,109.7]
[1645964565583,16.4494,91.29,91.191,109.7]
[1645964565782,12.37835144,91.289,91.191,109.7]
[1645964565983,1.79802701,91.288,91.191,109.7]
[1645964566183,1.79802701,91.288,91.178,27.50436528]
[1645964566184,6.0,91.287,91.178,27.50436528]
[1645964566387,138.8938,91.286,91.178,27.50436528]
[1645964566585,110.2,91.284,91.142,27.50436528]
[1645964566786,110.2,91.282,91.142,27.50436528]
[1645964566984,1.840342,91.281,91.142,27.50436528]
[1645964567186,110.2,91.277,91.143,45.36371258]
[1645964567387,45.88206605,91.249,91.151,110.2]
[1645964567595,2.07395945,91.247,91.151,110.2]
[1645964567889,10.386,91.246,91.151,110.2]
[1645964568087,1.81309701,91.245,91.151,110.2]
[1645964568287,6.0,91.244,91.151,110.2]
[1645964568688,6.06491884,91.243,91.151,110.2]
[1645964568888,6.0,91.242,91.151,110.2]
[1645964569089,7.59513666,91.242,91.151,110.2]
[1645964570591,4.386,91.241,91.151,110.2]
[1645964570791,6.0,91.24,91.151,110.2]
[1645964570994,8.06109543,91.24,91.151,110.2]
[1645964571392,6.0,91.24,91.151,110.2]
[1645964571589,10.386,91.245,91.151,110.2]
[1645964571790,2.07969595,91.244,91.151,110.2]
[1645964571990,10.386,91.243,91.151,110.2]
[1645964572190,1.6101685,91.242,91.151,110.2]
[1645964572393,10.386,91.241,91.151,110.2]
[1645964572592,1.73763039,91.24,91.151,110.2]
[1645964572795,6.0,91.239,91.151,110.2]
[1645964573194,6.0,91.239,91.151,112.94678921]
[1645964573596,6.0,91.245,91.151,112.94678921]
[1645964574394,4.386,91.244,91.151,112.94678921]
[1645964574594,6.0,91.243,91.151,112.94678921]
[1645964574994,6.0,91.243,91.151,137.36008921]
[1645964580905,6.0,91.243,91.151,134.6133]
[1645964581506,6.0,91.243,91.161,110.2]
[1645964581706,6.0,91.243,91.163,110.2]
[1645964582109,6.0,91.243,91.164,2.74678921]
[1645964582510,6.0,91.243,91.171,110.2]
[1645964583413,6.0,91.243,91.17,16.4527]
[1645964583613,110.2,91.242,91.154,2.74678921]
[1645964583818,110.2,91.24,91.134,23.2929]
[1645964584013,6.0,91.239,91.134,23.2929]
[1645964584213,4.386,91.238,91.134,23.2929]
[1645964584413,6.0,91.237,91.134,133.4929]
[1645964584612,16.4623,91.22,91.135,39.48728102]
[1645964584816,75.45857934,91.219,91.135,39.48728102]
[1645964585028,1.6021388,91.218,91.135,39.48728102]
[1645964585228,6.0,91.217,91.135,39.48728102]
[1645964585629,8.74678921,91.217,91.135,39.48728102]
[1645964585829,2.74678921,91.216,91.135,39.48728102]
[1645964586032,6.0,91.215,91.135,39.48728102]
[1645964586431,6.0,91.215,91.136,110.2]
[1645964587630,6.0,91.215,91.135,39.48728102]
[1645964588932,6.0,91.215,91.129,16.1194]
[1645964589932,6.0,91.215,91.13,43.5374079]
[1645964591833,16.4631,91.21,91.129,16.1194]
[1645964592133,7.77852624,91.209,91.125,23.7687]
[1645964592334,10.52531545,91.209,91.125,23.7687]
[1645964592536,2.74678921,91.208,91.125,23.7687]
[1645964592734,6.0,91.207,91.125,23.7687]
[1645964592937,29.9708,91.207,91.125,133.9687]
[1645964593137,4.75717529,91.206,91.125,133.9687]
[1645964593337,32.64534782,91.204,91.125,23.7687]
[1645964593641,8.10346394,91.203,91.125,23.7687]
[1645964594038,16.465,91.2,91.125,23.7687]
[1645964594239,7.57094311,91.199,91.125,23.7687]
[1645964594638,7.57094311,91.199,91.105,110.2]
[1645964594639,2.74678921,91.198,91.105,110.2]
[1645964594839,2.74678921,91.198,91.083,46.5707]
[1645964594840,10.388,91.197,91.107,110.2]
[1645964595040,26.2641858,91.196,91.107,110.2]
[1645964595239,12.41544146,91.195,91.107,110.2]
[1645964595438,1.91538947,91.194,91.107,110.2]
[1645964595639,6.0,91.193,91.107,110.2]
[1645964595840,110.2,91.189,91.083,22.7982]
[1645964596041,120.589,91.188,91.083,22.7982]
[1645964596241,2.04053576,91.187,91.083,22.7982]
[1645964596440,10.389,91.186,91.083,22.7982]
[1645964596640,50.36614292,91.185,91.083,22.7982]
[1645964596843,48.04931768,91.184,91.077,16.8111]
[1645964597042,1.69188153,91.183,91.077,16.8111]
[1645964597240,2.09108195,91.181,91.078,110.2]
[1645964597440,6.0,91.18,91.078,110.2]
[1645964597843,6.0,91.18,91.079,34.44283121]
[1645964598040,6.0,91.18,91.08,110.2]
[1645964598440,6.0,91.18,91.082,110.2]
[1645964600645,6.0,91.18,91.083,2.74678921]
[1645964600847,6.0,91.18,91.091,110.2]
[1645964601242,6.0,91.18,91.092,2.74678921]
[1645964601448,6.0,91.18,91.094,110.2]
[1645964601743,6.0,91.18,91.095,2.74678921]
[1645964602043,2.09108195,91.181,91.101,110.2]
[1645964602442,6.0,91.18,91.102,2.74678921]
[1645964602844,6.0,91.183,91.103,4.388]
[1645964603044,35.80812074,91.184,91.104,110.2]
[1645964603245,6.0,91.183,91.108,110.2]
[1645964603543,6.0,91.183,91.121,110.2]
[1645964603743,35.80812074,91.184,91.123,110.2]
[1645964605347,6.0,91.183,91.123,110.2]
[1645964605746,7.67327891,91.183,91.123,110.2]
[1645964606147,1.67327891,91.183,91.123,110.2]
[1645964606347,35.80812074,91.184,91.123,110.2]
[1645964606548,35.80812074,91.184,91.131,110.2]
[1645964607148,22.6503,91.21,91.131,110.2]
[1645964607348,7.87237249,91.209,91.133,110.2]
[1645964608249,37.6081835,91.208,91.133,110.2]
[1645964608451,7.94330338,91.207,91.133,110.2]
[1645964609253,7.94330338,91.207,91.141,110.2]
[1645964609452,7.94330338,91.207,91.143,110.2]
[1645964609851,6.0,91.207,91.143,110.2]
[1645964611954,7.83850883,91.207,91.143,110.2]
[1645964612155,7.83850883,91.207,91.142,41.15628471]
[1645964612356,7.83850883,91.207,91.132,22.9845]
[1645964613158,2.74678921,91.206,91.104,110.2]
[1645964613456,2.74678921,91.206,91.085,4.386]
[1645964613457,111.82275748,91.204,91.102,22.5979]
[1645964613657,110.2,91.202,91.094,38.63136126]
[1645964613856,110.2,91.2,91.094,38.63136126]
[1645964614054,1.95381299,91.199,91.094,38.63136126]
[1645964614259,10.388,91.198,91.095,110.2]
[1645964614458,1.79459231,91.197,91.095,110.2]
[1645964614661,6.0,91.196,91.101,110.2]
[1645964614859,6.0,91.196,91.103,110.2]
[1645964615060,6.0,91.196,91.105,110.2]
[1645964615258,6.0,91.196,91.107,110.2]
[1645964615458,6.0,91.196,91.104,24.8442]
[1645964615459,2.07841392,91.197,91.109,110.2]
[1645964615658,45.815,91.198,91.111,110.2]
[1645964615858,45.815,91.198,91.113,110.2]
[1645964616057,45.815,91.198,91.112,6.0]
[1645964616058,45.815,91.198,91.115,110.2]
[1645964616259,45.815,91.198,91.117,110.2]
[1645964616459,45.815,91.198,91.13,16.4597]
[1645964616658,45.815,91.198,91.131,150.125249]
[1645964616865,2.06020131,91.206,91.131,152.87203821]
[1645964617059,6.0,91.205,91.133,110.2]
[1645964617262,6.0,91.205,91.135,110.2]
[1645964617460,6.0,91.205,91.137,110.2]
[1645964617661,6.0,91.207,91.139,110.2]
[1645964617860,6.0,91.207,91.141,110.2]
[1645964618062,6.0,91.207,91.143,110.2]
[1645964618260,6.0,91.207,91.147,110.2]
[1645964618462,6.0,91.207,91.151,110.2]
[1645964619265,6.0,91.207,91.152,2.74678921]
[1645964621265,6.0,91.207,91.15,33.0881]
[1645964621664,6.0,91.207,91.151,110.2]
[1645964621865,6.0,91.207,91.15,33.0881]
[1645964622265,1.59240735,91.238,91.15,33.0881]
[1645964622667,1.59240735,91.238,91.151,110.2]
[1645964623667,1.59240735,91.238,91.15,33.0881]
[1645964623867,6.0,91.207,91.15,33.0881]
[1645964624268,1.59240735,91.238,91.15,33.0881]
[1645964624467,6.0,91.207,91.15,33.0881]
[1645964624671,6.0,91.207,91.151,110.2]
[1645964624868,1.59240735,91.238,91.151,110.2]
[1645964625470,6.0,91.237,91.153,110.2]
[1645964626291,45.17520265,91.236,91.153,110.2]
[1645964626490,7.95777231,91.235,91.153,110.2]
[1645964633704,7.95777231,91.235,91.163,110.2]
[1645964633905,7.95777231,91.235,91.165,110.2]
[1645964636412,6.0,91.235,91.171,110.2]
[1645964636611,8.07261409,91.235,91.171,110.2]
[1645964638312,8.07261409,91.235,91.17,16.4524]
[1645964642415,8.07261409,91.235,91.164,23.9778]
[1645964643118,8.07261409,91.235,91.151,110.2]
[1645964643119,8.07261409,91.235,91.15,16.4555]
[1645964643319,2.74678921,91.234,91.145,39.87860914]
[1645964643517,6.0,91.233,91.146,24.7838]
[1645964643718,7.77699957,91.233,91.146,24.7838]
[1645964644519,16.4596,91.23,91.146,24.7838]
[1645964644719,7.55422961,91.229,91.146,24.7838]
[1645964645621,24.8158,91.228,91.146,24.7838]
[1645964645821,7.93917691,91.227,91.146,24.7838]
[1645964648022,7.93917691,91.227,91.147,110.2]
[1645964648225,7.93917691,91.227,91.147,112.94678921]
[1645964648422,7.93917691,91.227,91.148,2.74678921]
[1645964649621,7.93917691,91.227,91.16,16.4544]
[1645964649821,7.93917691,91.227,91.16,48.68782654]
[1645964652124,7.93917691,91.227,91.161,110.2]
[1645964652747,7.93917691,91.227,91.171,110.2]
[1645964653150,7.93917691,91.227,91.172,2.74678921]
[1645964653747,7.93917691,91.227,91.171,110.2]
[1645964654749,1.93917691,91.227,91.171,110.2]
[1645964654951,25.81653187,91.25,91.18,16.4505]
[1645964655151,25.81653187,91.25,91.181,110.2]
[1645964655349,1.94360059,91.249,91.182,6.0]
[1645964655549,1.94360059,91.249,91.183,110.2]
[1645964655851,45.62456669,91.248,91.185,110.2]
[1645964656048,2.07504853,91.247,91.187,110.2]
[1645964656249,2.07504853,91.247,91.189,110.2]
[1645964656448,2.07504853,91.247,91.2,16.447]
[1645964656649,2.07504853,91.247,91.201,110.2]
[1645964656854,2.07504853,91.247,91.203,110.2]
[1645964658453,4.384,91.283,91.211,110.2]
[1645964658752,1.88449626,91.293,91.211,110.2]
[1645964658951,6.0,91.292,91.212,2.74678921]
[1645964659451,1.94011179,91.29,91.214,110.2]
[1645964659653,1.94011179,91.29,91.216,110.2]
[1645964659852,6.0,91.289,91.217,32.86047238]
[1645964661453,6.0,91.289,91.203,175.0964]
[1645964661853,29.78471379,91.289,91.203,175.0964]
[1645964662053,1.81355761,91.288,91.203,64.8964]
[1645964662255,6.19655761,91.288,91.203,64.8964]
[1645964662457,6.0,91.287,91.204,44.17434296]
[1645964662655,7.83708373,91.287,91.204,44.17434296]
[1645964666061,7.83708373,91.287,91.205,110.2]
[1645964666258,7.83708373,91.287,91.21,16.4452]
[1645964666459,7.83708373,91.287,91.211,110.2]
[1645964667058,7.83708373,91.287,91.21,16.4452]
[1645964667261,7.83708373,91.287,91.204,44.17434296]
[1645964667861,7.83708373,91.287,91.205,2.74678921]
[1645964668261,7.83708373,91.287,91.205,112.94678921]
[1645964668664,7.83708373,91.287,91.206,2.74678921]
[1645964668861,7.83708373,91.287,91.208,110.2]
[1645964669263,7.83708373,91.287,91.209,2.74678921]
[1645964669462,7.83708373,91.287,91.211,110.2]
[1645964669669,1.83708373,91.287,91.211,110.2]
[1645964669864,1.83708373,91.287,91.212,2.74678921]
[1645964670065,38.81796894,91.291,91.212,2.74678921]
[1645964670265,38.81796894,91.291,91.213,4.383]
[1645964670663,38.81796894,91.291,91.215,110.2]
[1645964670865,38.81796894,91.291,91.217,110.2]
[1645964671063,38.81796894,91.291,91.219,110.2]
[1645964671266,38.81796894,91.291,91.221,110.2]
[1645964671467,38.81796894,91.291,91.223,110.2]
[1645964671763,38.81796894,91.291,91.225,110.2]
[1645964671963,38.81796894,91.291,91.227,110.2]
[1645964672163,1.64487402,91.29,91.227,110.2]
[1645964672966,1.64487402,91.29,91.228,110.2]
[1645964673165,6.0,91.289,91.22,16.4433]
[1645964673363,6.0,91.289,91.221,110.2]
[1645964673562,1.64487402,91.29,91.221,110.2]
[1645964673766,6.0,91.289,91.221,110.2]
[1645964674563,6.0,91.289,91.22,16.4433]
[1645964674764,6.0,91.289,91.218,66.69757256]
[1645964675364,6.0,91.289,91.205,4.383]
[1645964675564,6.0,91.289,91.2,16.5969]
[1645964676065,6.0,91.289,91.201,110.2]
[1645964676267,6.0,91.289,91.204,34.62160187]
[1645964679470,7.88603993,91.289,91.204,34.62160187]
[1645964681670,7.88603993,91.289,91.2,33.0438]
[1645964682674,7.88603993,91.289,91.204,35.03055043]
[1645964684275,7.88603993,91.289,91.204,59.76555043]
[1645964685675,7.88603993,91.289,91.211,110.2]
[1645964685676,1.88603993,91.289,91.211,110.2]
[1645964685875,1.88603993,91.289,91.211,114.583]
[1645964686076,1.88603993,91.289,91.212,2.74678921]
[1645964686697,1.88603993,91.289,91.213,4.383]
[1645964686899,6.0,91.288,91.214,6.0]
[1645964687098,6.0,91.288,91.214,8.74678921]
[1645964687299,6.0,91.288,91.215,24.2366]
[1645964687500,6.0,91.288,91.22,16.4436]
[1645964687802,6.0,91.288,91.221,44.10782971]
[1645964688000,6.0,91.288,91.222,110.2]
[1645964688401,6.0,91.288,91.223,2.74678921]
[1645964688801,1.88603993,91.289,91.223,2.74678921]
[1645964689007,1.88603993,91.289,91.224,6.0]
[1645964689403,1.88603993,91.289,91.225,2.74678921]
[1645964689603,38.81796894,91.291,91.225,2.74678921]
[1645964689805,1.54462311,91.293,91.231,110.2]
[1645964690003,2.07225095,91.308,91.233,110.2]
[1645964690206,1.87269232,91.324,91.235,110.2]
[1645964690403,6.0,91.323,91.237,110.2]
[1645964690606,6.0,91.323,91.239,110.2]
[1645964690806,6.0,91.323,91.24,33.5305806]
[1645964690807,44.99515924,91.322,91.24,33.5305806]
[1645964691009,7.5631183,91.321,91.241,110.2]
[1645964691206,7.5631183,91.321,91.24,33.5305806]
[1645964691409,7.5631183,91.321,91.241,110.2]
[1645964691612,7.5631183,91.321,91.25,16.4387]
[1645964692206,7.5631183,91.321,91.251,24.0697]
[1645964693807,7.5631183,91.321,91.24,33.5305806]
[1645964694009,4.382,91.32,91.24,33.5305806]
[1645964694210,6.0,91.319,91.24,33.5305806]
[1645964694507,6.36180473,91.318,91.24,33.5305806]
[1645964694707,6.0,91.317,91.24,33.5305806]
[1645964697710,4.382,91.316,91.24,33.5305806]
[1645964697911,6.0,91.315,91.24,33.5305806]
[1645964698509,1.95290702,91.313,91.24,33.5305806]
[1645964698711,6.0,91.312,91.24,33.5305806]
[1645964700012,6.0,91.312,91.241,110.2]
[1645964700613,6.0,91.312,91.24,33.5305806]
[1645964701613,6.0,91.312,91.241,110.2]
[1645964701820,1.95290702,91.313,91.243,110.2]
[1645964702016,1.95290702,91.313,91.245,110.2]
[1645964702315,1.95290702,91.313,91.247,110.2]
[1645964702514,1.78223505,91.337,91.25,16.4372]
[1645964702714,1.78223505,91.337,91.251,116.2]
[1645964702916,1.78223505,91.337,91.251,141.77255191]
[1645964703115,1.78223505,91.337,91.251,144.51934112]
[1645964703518,1.78223505,91.337,91.252,2.74678921]
[1645964703815,1.78223505,91.337,91.263,110.2]
[1645964704516,1.78223505,91.337,91.262,43.8960972]
[1645964705117,1.78223505,91.337,91.263,110.2]
[1645964706716,1.78223505,91.337,91.262,43.8960972]
[1645964707118,42.95268154,91.322,91.263,110.2]
[1645964707316,42.95268154,91.322,91.263,112.94678921]
[1645964707518,42.95268154,91.322,91.264,2.74678921]
[1645964708117,42.95268154,91.322,91.262,43.8960972]
[1645964708319,1.78223505,91.337,91.263,2.74678921]
[1645964708517,28.6071,91.336,91.263,26.43358921]